fUSD/lending_fUSD_20250823
["ID","MTS","AMOUNT","RATE_DAILY","PERIOD"]
[381029663,1755956718351,-2000.0,0.00038356,120]
[381029664,1755956718377,-2000.0,0.00038356,120]
[381029665,1755956718404,-2000.0,0.00038356,120]
[381029666,1755956718434,-2000.0,0.00038356,120]
[381029667,1755956718462,-2000.0,0.00038356,120]
[381029668,1755956718488,-2000.0,0.00038356,120]
[381029669,1755956718514,-2000.0,0.00038356,120]
[381029670,1755956718546,-2000.0,0.00038356,120]
[381029671,1755956718572,-2000.0,0.00038356,120]
[381029672,1755956718598,-2000.0,0.00038356,120]
[381029673,1755956718623,-2000.0,0.00038356,120]
[381029674,1755956718649,-2000.0,0.00038356,120]
[381029675,1755956718676,-2000.0,0.00038356,120]
[381029676,1755956718701,-2000.0,0.00038356,120]
[381029677,1755956718727,-479.0,0.00038356,120]
[381029678,1755956718755,-1832.66,0.00038362,120]
[381029679,1755956718783,-150.0,0.00038388,120]
[381029680,1755956718809,-150.0,0.00038397,120]
[381029681,1755956718839,-1832.66,0.00038462,120]
[381029682,1755956718866,-3305.57584,0.00038488,30]
[381029683,1755956718893,-1268.23,0.00038493,37]
[381029684,1755956718922,-500.0,0.0003855,120]
[381029685,1755956718949,-1832.66,0.00038562,120]
[381029686,1755956718976,-1832.66,0.00038662,120]
[381029687,1755956719003,-3305.57584,0.00038688,30]
[381029688,1755956719029,-1846.16453244,0.0003869,120]
[381029689,1755956719055,-150.0,0.00038708,120]
[381029690,1755956719082,-5289.15,0.00038718,52]
[381029691,1755956719108,-1832.66,0.00038762,120]
[381029692,1755956719132,-2083.34,0.00038767,120]
[381029693,1755956719161,-49493.74334451,0.00038835,32]
[381029694,1755956719187,-1832.66,0.00038862,120]
[381029695,1755956719213,-449.77685,0.000389,120]
[381029696,1755956719239,-161.0,0.000389,120]
[381029697,1755956719267,-150.0,0.00038945,120]
[381029698,1755956719293,-322.524,0.00038958,53]
[381029699,1755956719320,-1832.66,0.00038962,120]
[381029700,1755956719348,-60977.43,0.00039,30]
[381029701,1755956719377,-3755.11,0.00039,30]
[381029702,1755956719403,-2111.20723433,0.00039,30]
[381029703,1755956719428,-1541.64186073,0.00039,120]
[381029704,1755956719454,-1593.04313346,0.00039,120]
[381029705,1755956719480,-287.0,0.00039,120]
[381029706,1755956719506,-3000.0,0.00039,120]
[381029707,1755956719534,-1659.4074791,0.00039,120]
[381029708,1755956719560,-921.30153034,0.00039,120]
[381029709,1755956719586,-1000.0,0.00039,120]
[381029710,1755956719611,-1483.90376819,0.00039,120]
[381029711,1755956719637,-1832.66,0.00039062,120]
[381029712,1755956719663,-150.0,0.00039071,120]
[381029713,1755956719688,-3305.57584,0.00039088,30]
[381029714,1755956719713,-150.0,0.00039126,120]
[381029715,1755956719738,-150.0,0.00039157,120]
[381029716,1755956719764,-1832.66,0.00039162,120]
[381029717,1755956719790,-1268.23,0.00039178,39]
[381029718,1755956719816,-150.0,0.00039195,120]
[381029719,1755956719844,-1000.0,0.00039209,30]
[381029720,1755956719871,-1832.66,0.00039262,120]
[381029721,1755956719896,-3305.57584,0.00039288,30]
[381029722,1755956719925,-153.0,0.000393,120]
[381029723,1755956719951,-150.0,0.00039303,120]
[381029724,1755956719977,-150.0,0.00039346,120]
[381029725,1755956720006,-1832.95137058,0.00039362,120]
[381029726,1755956720034,-150.0,0.00039373,120]
[381029727,1755956720062,-3305.57584,0.00039488,30]
[381029728,1755956720091,-150.0,0.00039495,120]
[381029729,1755956720117,-150.0,0.00039531,120]
[381029730,1755956720283,-49493.74334451,0.00039532,33]
[381029731,1755956720311,-150.0,0.00039667,120]
[381029732,1755956720339,-3305.57584,0.00039688,30]
[381029733,1755956720371,-150.0,0.00039697,120]
[381029734,1755956720396,-792.13469994,0.000397,120]
[381029735,1755956720426,-150.0,0.00039705,120]
[381029736,1755956720451,-150.0,0.00039715,120]
[381029737,1755956720479,-2693.02993384,0.000398,120]
[381029738,1755956720510,-161.0,0.000398,120]
[381029739,1755956720538,-2666.25588921,0.000398,120]
[381029740,1755956720566,-1268.23,0.00039863,41]
[381029741,1755956720596,-3305.57584,0.00039888,30]
[381029742,1755956720624,-158.74813353,0.000399,120]
[381029743,1755956720652,-158.7481335,0.000399,120]
[381029744,1755956720680,-158.7481335,0.000399,120]
[381029745,1755956720707,-158.7481335,0.000399,120]
[381029746,1755956720734,-158.7481335,0.000399,120]
[381029747,1755956720761,-158.7481335,0.000399,120]
[381029748,1755956720788,-158.7481335,0.000399,120]
[381029749,1755956720815,-158.7481335,0.000399,120]
[381029750,1755956720843,-158.7481335,0.000399,120]
[381029751,1755956720871,-150.0,0.00039943,120]
[381029752,1755956720899,-150.0,0.00039974,120]
[381029753,1755956720937,-20000.0,0.0003999,30]
[381029754,1755956720965,-1000.0,0.00039999,120]
[381029755,1755956720991,-1000.0,0.0004,120]
[381029756,1755956721015,-288.1005,0.0004,120]
[381029757,1755956721040,-1712.38745653,0.0004,120]
[381029758,1755956721065,-951.44692073,0.0004,120]
[381029759,1755956721092,-202.32676409,0.0004,30]
[381029760,1755956721116,-2673.92645009,0.0004,30]
[381029761,1755956721141,-238.07941012,0.0004,120]
[381029762,1755956721165,-562.18764553,0.0004,120]
[381029763,1755956721191,-511.08546635,0.0004,120]
[381029764,1755956721216,-1146.18562866,0.0004,120]
[381029765,1755956721240,-260.25107706,0.0004,80]
[381029766,1755956721266,-824.10208771,0.0004,120]
[381029767,1755956721291,-337.19764856,0.0004,120]
[381029768,1755956721317,-166.42831164,0.0004,120]
[381029769,1755956721345,-500.0,0.0004,30]
[381029770,1755956721375,-4303.0,0.0004,120]
[381029771,1755956721402,-3092.44562713,0.0004,120]
[381029772,1755956721428,-2747.0,0.0004,120]
[381029773,1755956721454,-153.85640101,0.0004,120]
[381029774,1755956721481,-477.12749073,0.0004,30]
[381029775,1755956721507,-2578.64035196,0.0004,90]
[381029776,1755956721532,-1000.0,0.0004,120]
[381029777,1755956721557,-200.0,0.0004,120]
[381029778,1755956721582,-260.16591333,0.0004,120]
[381029779,1755956721607,-500.0,0.0004,120]
[381029780,1755956721633,-2000.0,0.0004,40]
[381029781,1755956721659,-700.0,0.0004,120]
[381029782,1755956721685,-844.27675029,0.0004,30]
[381029783,1755956721711,-1000.0,0.0004,120]
[381029784,1755956721738,-844.27675029,0.0004,120]
[381029785,1755956721764,-908.18,0.0004,120]
[381029786,1755956721790,-1830.3,0.0004,120]
[381029787,1755956721817,-150.0,0.0004,120]
[381029788,1755956721844,-458.60200496,0.0004,30]
[381029789,1755956721870,-160.0,0.0004,120]
[381029790,1755956721895,-212.10093811,0.0004,120]
[381029791,1755956721925,-212.10093811,0.0004,30]
[381029792,1755956721952,-844.27675029,0.0004,30]
[381029793,1755956721978,-2000.0,0.0004,120]
[381029794,1755956722010,-150.0,0.0004005,120]
[381029795,1755956722042,-3305.57584,0.00040088,30]
[381029796,1755956722075,-150.0,0.00040186,120]
[381029797,1755956722105,-49493.74334451,0.00040228,35]
[381029798,1755956722133,-150.0,0.0004026,120]
[381029799,1755956722159,-3305.57584,0.00040288,30]
[381029800,1755956722185,-150.0,0.00040292,30]
[381029801,1755956722211,-12688.02958894,0.00040292,30]
[381029802,1755956722238,-150.0,0.00040292,30]
[381029803,1755956722264,-1580.96095971,0.00040292,30]
[381029804,1755956722290,-337.12301486,0.00040299,60]
[381029805,1755956722319,-11031.9,0.00040308,117]
[381029806,1755956722352,-150.0,0.00040382,120]
[381029807,1755956722379,-3305.57584,0.00040488,30]
[381029808,1755956722405,-1750.0,0.000405,120]
[381029809,1755956722432,-1268.23,0.00040547,43]
[381029810,1755956722459,-150.0,0.00040552,120]
[381029811,1755956722484,-150.0,0.00040603,120]
[381029812,1755956722511,-3226.23,0.00040618,120]
[381029813,1755956722538,-3305.57584,0.00040688,30]
[381029814,1755956722565,-150.0,0.00040697,120]
[381029815,1755956722914,-161.0,0.000407,120]
[381029816,1755956722941,-153.0,0.000407,120]
[381029817,1755956722969,-150.0,0.00040787,120]
[381029818,1755956722999,-3261.68936477,0.000408,90]
[381029819,1755956723026,-150.0,0.000408,120]
[381029820,1755956723055,-150.0,0.0004082,120]
[381029821,1755956723089,-3305.57584,0.00040888,30]
[381029822,1755956723119,-49493.74334451,0.00040925,36]
[381029823,1755956723148,-277.12575958,0.00040999,120]
[381029824,1755956723175,-1000.0,0.00040999,120]
[381029825,1755956723202,-645.13230011,0.00041,30]
[381029826,1755956723228,-60977.43,0.00041,30]
[381029827,1755956723255,-3755.11,0.00041,30]
[381029828,1755956723281,-673.94323108,0.00041,120]
[381029829,1755956723309,-1502.40506053,0.00041,120]
[381029830,1755956723336,-2584.2499969,0.00041,120]
[381029831,1755956723363,-786.82680809,0.00041,31]
[381029832,1755956723390,-772.75752696,0.00041,31]
[381029833,1755956723415,-198.89922271,0.00041,45]
[381029834,1755956723442,-862.94899592,0.00041,120]
[381029835,1755956723483,-150.0,0.00041001,120]
[381029836,1755956723524,-3305.57584,0.00041088,30]
[381029837,1755956723563,-1426.77,0.00041095,120]
[381029838,1755956723605,-1426.77,0.00041095,120]
[381029839,1755956723644,-1426.77,0.00041095,120]
[381029840,1755956723684,-1426.77,0.00041095,120]
[381029841,1755956723733,-1426.77,0.00041095,120]
[381029842,1755956723792,-1426.77,0.00041095,120]
[381029843,1755956723835,-1426.77,0.00041095,120]
[381029844,1755956723873,-1426.77,0.00041095,120]
[381029845,1755956723914,-1426.77,0.00041095,120]
[381029846,1755956723954,-1426.77,0.00041095,120]
[381029847,1755956723993,-1426.77,0.00041095,120]
[381029848,1755956724030,-1426.77,0.00041095,120]
[381029849,1755956724067,-1426.77,0.00041095,120]
[381029850,1755956724107,-1426.77,0.00041095,120]
[381029851,1755956724144,-1426.77,0.00041095,120]
[381029852,1755956724182,-1426.77,0.00041095,120]
[381029853,1755956724221,-1426.77,0.00041095,120]
[381029854,1755956724259,-1426.77,0.00041095,120]
[381029855,1755956724297,-1426.77,0.00041095,120]
[381029856,1755956724335,-1426.77,0.00041095,120]
[381029857,1755956724373,-1426.77,0.00041095,120]
[381029858,1755956724412,-1426.77,0.00041095,120]
[381029859,1755956724449,-1426.77,0.00041095,120]
[381029860,1755956724485,-1426.92723997,0.00041095,120]
[381029861,1755956724523,-3183.21,0.00041096,120]
[381029862,1755956724560,-1000.0,0.00041096,60]
[381029863,1755956724601,-1000.0,0.00041096,60]
[381029864,1755956724639,-1000.0,0.00041096,60]
[381029865,1755956724681,-1000.0,0.00041096,60]
[381029866,1755956724719,-1000.0,0.00041096,60]
[381029867,1755956724757,-1000.0,0.00041096,60]
[381029868,1755956724795,-1000.0,0.00041096,60]
[381029869,1755956724834,-1000.0,0.00041096,60]
[381029870,1755956724873,-1000.0,0.00041096,60]
[381029871,1755956724916,-1000.0,0.00041096,60]
[381029872,1755956724957,-1000.0,0.00041096,60]
[381029873,1755956724998,-1000.0,0.00041096,60]
[381029874,1755956725037,-1000.0,0.00041096,60]
[381029875,1755956725077,-295.0,0.00041096,30]
[381029876,1755956725119,-1000.0,0.00041096,60]
[381029877,1755956725159,-1000.0,0.00041096,60]
[381029878,1755956725197,-1000.0,0.00041096,60]
[381029879,1755956725238,-1000.0,0.00041096,60]
[381029880,1755956725276,-1000.0,0.00041096,60]
[381029881,1755956725314,-1000.0,0.00041096,60]
[381029882,1755956725428,-1000.0,0.00041096,60]
[381029883,1755956725467,-1000.0,0.00041096,60]
[381029884,1755956725504,-1000.0,0.00041096,60]
[381029885,1755956725542,-1000.0,0.00041096,60]
[381029886,1755956725581,-1000.0,0.00041096,60]
[381029887,1755956725621,-1000.0,0.00041096,60]
[381029888,1755956725660,-1000.0,0.00041096,60]
[381029889,1755956725701,-1000.0,0.00041096,60]
[381029890,1755956725748,-1000.0,0.00041096,60]
[381029891,1755956725785,-1000.0,0.00041096,60]
[381029892,1755956725824,-1000.0,0.00041096,60]
[381029893,1755956725865,-600.0,0.00041096,120]
[381029894,1755956726608,158.7481335,0.000399,120]
[381029895,1755956726702,421.0,0.00029863,60]
[381029896,1755956726767,154.25,0.00030547,120]
[381029897,1755956726910,421.0,0.00030137,60]
[381029898,1755956727079,154.25,0.00030684,120]
[381029899,1755956727279,421.0,0.00030411,60]
[381029900,1755956727359,154.25,0.00030821,120]
[381029901,1755956727431,421.0,0.00030685,60]
[381029902,1755956727544,154.25,0.00030958,120]
[381029903,1755956727652,421.0,0.00030959,60]
[381029904,1755956727728,154.25,0.00031095,120]
[381029905,1755956727834,154.25,0.00031232,120]
[381029906,1755956727892,421.0,0.00031233,60]
[381029907,1755956727996,421.0,0.00031507,60]
[381029908,1755956728047,154.25,0.00031369,120]
[381029909,1755956728139,421.0,0.00031781,60]
[381029910,1755956728202,154.25,0.00031506,120]
[381029911,1755956728269,421.0,0.00032055,60]
[381029912,1755956728495,421.0,0.00032329,60]
[381029913,1755956728578,421.0,0.00032603,60]
[381029914,1755956728680,421.0,0.00032877,60]
[381029915,1755956728757,421.0,0.00033151,60]
[381029916,1755956728817,280.0,0.000374,30]
[381029917,1755956728875,421.0,0.00033425,60]
[381029918,1755956728959,421.0,0.00033699,60]
[381029919,1755956729156,421.0,0.00033972,60]
[381029920,1755956729221,421.0,0.00034246,60]
[381029921,1755956729603,421.0,0.0003452,60]
[381029922,1755956729715,421.0,0.00034794,60]
[381029923,1755956729768,437.51091314,0.00035068,60]
[381029924,1755956729937,154.25,0.00031643,120]
[381029925,1755956730127,154.25,0.0003178,120]
[381029926,1755956730238,154.25,0.00031917,120]
[381029927,1755956730346,154.25,0.00032054,120]
[381029928,1755956730559,154.25,0.00032191,120]
[381029929,1755956730645,154.25,0.00032328,120]
[381029930,1755956730723,154.25,0.00032465,120]
[381029931,1755956730778,154.25,0.00032602,120]
[381029932,1755956730860,154.25,0.00032739,120]
[381029933,1755956730941,154.25,0.00032876,120]
[381029934,1755956731026,154.25,0.00033013,120]
[381029935,1755956731213,154.25,0.0003315,120]
[381029936,1755956731282,154.29218924,0.00033287,120]
[381029937,1755956733747,844.27675029,0.0004,30]
[381029938,1755956737391,458.60200496,0.0003,30]
[381029939,1755956737987,458.60200496,0.0004,30]
[381029940,1755956739262,150.0,0.00031401,120]
[381029941,1755956742030,152.0,0.00032457,120]
[381029942,1755956742519,283.096,0.00040274,30]
[381029943,1755956742824,1220.0,0.00032457,120]
[381029944,1755956743638,166.41447865,0.00032457,120]
[381029945,1755956743788,154.0,0.00032457,120]
[381029959,1755956894475,500.0,0.00028767,120]
[381029960,1755956922749,222.91618352,0.00028667,120]
[381029961,1755956935893,611.9,0.00028767,120]
[381029969,1755957031691,-232.9733,0.00011424,2]
[381029970,1755957031702,-271.69276,0.00011472,3]
[381029971,1755957031713,-464.09513756,0.00011472,3]
[381029972,1755957031751,-1264.21210244,0.00011472,3]
[381029973,1755957031760,-300.0,0.00011519,2]
[381029974,1755957031769,-300.0,0.00011519,2]
[381029975,1755957031779,-1200.0,0.00011519,2]
[381029976,1755957031789,-300.0,0.00011519,2]
[381029977,1755957031798,-150.0,0.0001152,2]
[381029978,1755957031808,-209.84824177,0.0001152,2]
[381029979,1755957031817,-496.86533019,0.0001152,2]
[381029980,1755957031827,-271.72340548,0.0001152,2]
[381029981,1755957031837,-175.90438496,0.0001152,2]
[381029982,1755957031851,-516.84350312,0.0001152,2]
[381029983,1755957031860,-500.0,0.0001152,2]
[381029984,1755957031870,-500.0,0.0001152,2]
[381029985,1755957031880,-334.59913429,0.0001152,2]
[381029986,1755957031890,-500.0,0.0001152,2]
[381029987,1755957031900,-350.0,0.0001152,2]
[381029988,1755957031909,-427.1578456,0.0001152,2]
[381029989,1755957031919,-502.34504058,0.0001152,2]
[381029990,1755957031928,-998.1161,0.00011999,2]
[381029991,1755957031938,-2000.0,0.00011999,2]
[381029992,1755957031947,-2000.0,0.00011999,2]
[381029993,1755957031957,-2000.0,0.00011999,2]
[381029994,1755957031967,-2000.0,0.00011999,2]
[381029995,1755957031978,-1952.26413768,0.00012384,2]
[381029997,1755957031991,-500.0,0.00012567,2]
[381029999,1755957032000,-2500.0,0.00012567,2]
[381030001,1755957032010,-2000.0,0.00012567,3]
[381030003,1755957032019,-255.0,0.0001258,2]
[381030005,1755957032030,-1680.0,0.00012671,2]
[381030007,1755957032039,-6454.73,0.00012893,2]
[381030009,1755957032048,-1214.48718159,0.00013429,2]
[381030011,1755957032059,-200.0,0.000136,2]
[381030013,1755957032069,-151.83,0.00013644,2]
[381030015,1755957032079,-214.28,0.00013644,2]
[381030017,1755957032090,-67.7935923,0.00013644,2]
[381030019,1755957032102,-146.3164077,0.00013644,2]
[381030021,1755957032111,-214.05,0.00013644,2]
[381030023,1755957032121,-212.10093811,0.00013656,2]
[381030024,1755957032131,-458.60200496,0.00013656,2]
[381030026,1755957032140,-160.0,0.00013656,2]
[381030028,1755957032150,-844.27675029,0.0001367,2]
[381030030,1755957032160,-1000.0,0.00013699,2]
[381030032,1755957032170,-433.0,0.00013732,2]
[381030034,1755957032180,-1863.25182236,0.00013735,2]
[381030037,1755957032192,-609.38030006,0.00013735,2]
[381030042,1755957032237,-262.8267673,0.00013735,2]
[381030045,1755957032256,-188.0588747,0.00013735,2]
[381030047,1755957032266,-382.0311253,0.00013765,2]
[381030053,1755957032321,-114.0188747,0.00013765,2]
[381030054,1755957032330,-150.93,0.00013783,2]
[381030055,1755957032341,-200.0,0.00013817,2]
[381030056,1755957032350,-1255.0,0.00013827,2]
[381030057,1755957032359,-925.0,0.00013827,2]
[381030058,1755957032368,-3373.0,0.00013827,2]
[381030059,1755957032377,-2030.0,0.00013827,2]
[381030060,1755957032386,-566.0,0.00013827,2]
[381030061,1755957032396,-1298.0,0.00013827,2]
[381030062,1755957032405,-1657.0,0.00013827,2]
[381030063,1755957032415,-599.0,0.00013827,2]
[381030064,1755957032425,-640.55,0.00013827,2]
[381030066,1755957032434,-894.0,0.00013827,2]
[381030068,1755957032444,-2096.63840989,0.00013827,2]
[381030070,1755957032456,-3996.36159011,0.00013827,2]
[381030072,1755957032466,-250.0,0.00013827,2]
[381030074,1755957032477,-718.0,0.00013827,2]
[381030076,1755957032488,-4153.0,0.00013827,2]
[381030078,1755957032498,-21510.0,0.00013827,2]
[381030081,1755957032508,-7428.9,0.00013856,2]
[381030083,1755957032518,-9093.11,0.00013869,2]
[381030084,1755957032527,-1000.0,0.00013875,2]
[381030086,1755957032537,-2000.0,0.00013899,2]
[381030088,1755957032547,-1000.0,0.000139,2]
[381030091,1755957032556,-1644.09,0.00013902,2]
[381030093,1755957032566,-672.27,0.00013907,2]
[381030095,1755957032576,-1000.0,0.00013907,2]
[381030097,1755957032586,-860.45,0.0001393,2]
[381030098,1755957032598,-687.95261698,0.00013931,2]
[381030100,1755957032608,-250.0,0.00013937,2]
[381030103,1755957032618,-562.96,0.00013938,2]
[381030104,1755957032629,-2351.0,0.00013938,2]
[381030106,1755957032639,-173.37,0.00013954,2]
[381030108,1755957032648,-1523.0,0.00013958,2]
[381030111,1755957032658,-161.3,0.00014131,2]
[381030113,1755957032668,-161.3,0.00014141,2]
[381030115,1755957032678,-161.3,0.00014151,2]
[381030117,1755957032687,-161.3,0.00014161,2]
[381030118,1755957032697,-161.3,0.00014171,2]
[381030120,1755957032707,-161.3,0.00014181,2]
[381030122,1755957032717,-161.3,0.00014191,2]
[381030123,1755957032726,-150.0,0.00014199,2]
[381030124,1755957032736,-161.3,0.00014201,2]
[381030125,1755957032745,-1644.09,0.00014597,2]
[381030126,1755957032755,-196.0,0.0001478,2]
[381030127,1755957032764,-173.7,0.0001478,2]
[381030128,1755957032774,-2370.18,0.0001478,2]
[381030129,1755957032784,-221.8569583,0.000149,2]
[381030130,1755957032793,-200.0,0.00014908,2]
[381030131,1755957032803,-250.0,0.00014921,2]
[381030132,1755957032812,-5289.149,0.00014957,2]
[381030133,1755957032822,-708.0,0.00014999,2]
[381030134,1755957032831,-1823.74476183,0.00015,2]
[381030137,1755957037648,-150.0,0.00014199,3]
[381030138,1755957037658,-180.47581602,0.00015,2]
[381030139,1755957037707,-748.00000014,0.00015,2]
[381030140,1755957037765,-699.81689505,0.00015,2]
[381030141,1755957037776,-453.20252696,0.00015,2]
[381030142,1755957037786,-250.0,0.00015,2]
[381030143,1755957037796,-888.0,0.00015028,2]
[381030144,1755957037806,-888.0,0.00015037,2]
[381030145,1755957037816,-745.85931304,0.00015063,2]
[381030146,1755957037916,-347.80573113,0.00011471,2]
[381030147,1755957037925,-190.20638384,0.00011471,2]
[381030148,1755957037936,-142.14068696,0.00015063,2]
[381030149,1755957037946,-118.28662014,0.00015074,2]
[381030150,1755957037957,-376.0213201,0.00015074,2]
[381030151,1755957037981,-393.69205976,0.00015074,2]
[381030152,1755957037993,-605.28549366,0.00015078,2]
[381030153,1755957038005,-282.71450634,0.00015078,2]
[381030165,1755957038016,-1530.39014901,0.00015084,3]
[381030175,1755957038447,-437.70943335,0.00015084,3]
[381030211,1755957039887,-150.0,0.00011471,2]
[381030212,1755957039898,-150.0,0.00014699,3]
[381030213,1755957039908,-850.0957244,0.00015084,3]
[381030214,1755957039939,-4181.80469324,0.00015084,3]
[381030215,1755957039949,-888.0,0.00015094,2]
[381030216,1755957039958,-344.48726,0.000151,2]
[381030217,1755957039968,-322.523,0.00015277,2]
[381030218,1755957039978,-1644.09,0.00015292,2]
[381030219,1755957039991,-165.0,0.00015332,2]
[381030220,1755957040001,-300.0,0.00015382,2]
[381030221,1755957040011,-888.0,0.00015387,2]
[381030222,1755957040021,-888.0,0.00015388,2]
[381030223,1755957040031,-888.0,0.00015449,2]
[381030224,1755957040041,-1950.90991456,0.00015502,2]
[381030225,1755957040051,-1413.7340131,0.00015601,2]
[381030226,1755957040064,-1185.08,0.00015602,2]
[381030227,1755957040074,-342.39,0.00015602,2]
[381030228,1755957040083,-539.42,0.00015602,2]
[381030229,1755957040093,-539.5,0.00015602,2]
[381030230,1755957040103,-539.5,0.00015602,2]
[381030231,1755957040113,-408.48,0.00015602,2]
[381030232,1755957040122,-1000.0,0.00015609,2]
[381030233,1755957040132,-888.0,0.00015628,2]
[381030234,1755957040142,-888.0,0.00015634,2]
[381030235,1755957040153,-860.45,0.00015671,2]
[381030236,1755957040162,-211.7,0.00015699,2]
[381030237,1755957040172,-213.65,0.00015699,2]
[381030238,1755957040181,-150.21,0.00015699,2]
[381030239,1755957040191,-888.0,0.0001578,2]
[381030240,1755957040202,-888.0,0.00015817,2]
[381030241,1755957040212,-888.0,0.00015822,2]
[381030242,1755957040223,-880.81066434,0.00015832,2]
[381030243,1755957040233,-888.0,0.00015852,2]
[381030244,1755957040243,-1950.90991456,0.0001588,2]
[381030245,1755957040254,-1000.0,0.000159,2]
[381030246,1755957040264,-888.0,0.00015905,2]
[381030247,1755957040274,-3677.45352,0.0001592,2]
[381030248,1755957040284,-900.0,0.00015965,2]
[381030249,1755957040293,-900.0,0.00015965,2]
[381030250,1755957040303,-900.0,0.00015965,2]
[381030251,1755957040313,-900.0,0.00015965,2]
[381030252,1755957040323,-900.0,0.00015965,2]
[381030253,1755957040332,-900.0,0.00015965,2]
[381030254,1755957040341,-900.0,0.00015965,2]
[381030255,1755957040351,-900.0,0.00015965,2]
[381030256,1755957040361,-192.0,0.0001597,2]
[381030257,1755957040370,-1644.09,0.00015987,2]
[381030258,1755957040380,-500.0,0.00016,2]
[381030259,1755957040389,-212.10093811,0.00016,3]
[381030260,1755957040399,-200.302847,0.00016,2]
[381030261,1755957040409,-151.0,0.00016003,2]
[381030262,1755957040418,-888.0,0.00016022,2]
[381030263,1755957040428,-151.0,0.00016026,2]
[381030264,1755957040437,-151.0,0.00016027,2]
[381030265,1755957040447,-151.0,0.0001603,2]
[381030266,1755957040456,-151.0,0.00016033,2]
[381030267,1755957040466,-863.06993049,0.00016034,2]
[381030268,1755957040479,-1497.64006951,0.00016034,2]
[381030269,1755957040489,-151.0,0.00016036,2]
[381030270,1755957040609,-151.0,0.00016039,2]
[381030271,1755957040620,-3677.45352,0.0001605,2]
[381030272,1755957040630,-888.0,0.00016058,2]
[381030273,1755957040640,-760.0,0.00016068,2]
[381030274,1755957040649,-500.0,0.00016068,2]
[381030275,1755957040659,-48646.40287156,0.00016072,2]
[381030276,1755957040669,-1331.53553893,0.00016076,2]
[381030277,1755957040690,-4734.27141293,0.00016076,2]
[381030278,1755957040716,-20994.32759718,0.00016076,2]
[381030279,1755957040726,-964.5704007,0.00016077,2]
[381030280,1755957040735,-48646.40287156,0.00016081,2]
[381030281,1755957040745,-61632.44560958,0.00016084,2]
[381030282,1755957040754,-166.70468547,0.00016084,2]
[381030283,1755957040764,-493.93984318,0.00016085,2]
[381030284,1755957040773,-82635.42703643,0.00016086,2]
[381030285,1755957040783,-493.93984318,0.00016086,2]
[381030286,1755957040792,-914.66587059,0.00016086,2]
[381030287,1755957040802,-240.71210123,0.00016087,2]
[381030288,1755957040811,-21779.93664797,0.00016087,2]
[381030289,1755957040822,-166.70468547,0.00016088,2]
[381030290,1755957040832,-3356.7131887,0.00016089,2]
[381030291,1755957040841,-21779.93664797,0.00016092,2]
[381030292,1755957040852,-39656.23196807,0.00016093,2]
[381030293,1755957040861,-3356.7131887,0.00016094,2]
[381030294,1755957040870,-941.60062995,0.00016094,2]
[381030295,1755957040880,-900.50440244,0.00016096,2]
[381030296,1755957040890,-914.66587059,0.00016097,2]
[381030297,1755957040900,-941.60062995,0.00016099,2]
[381030298,1755957040909,-267494.27335426,0.00016099,2]
[381030299,1755957040919,-136617.25969875,0.000161,2]
[381030300,1755957040929,-212.0,0.000161,2]
[381030301,1755957040939,-150.0,0.000161,2]